[Event "Schack-SM 2022: Mastarklassen-Elit"]
[Site "Fyrishov, Idrottsgatan 2, Uppsala, Sweden"]
[Date "2022.07.10"]
[Round "9.4"]
[White "Furhoff, Johan"]
[Black "Johansson, Jan"]
[Result "1-0"]
[TimeControl "90 minutes for 40 moves + 30 minutes for the rest of the game + 30 seconds per move from move one."]
[WhiteTitle "IM"]
[BlackTitle "IM"]
[WhiteFideId "1701797"]
[BlackFideId "1700103"]
[WhiteElo "2348"]
[BlackElo "2306"]

1. e4 {[%clk 01:27:14]} {[%emt 00:03:45]} e6 {[%clk 01:30:52]} {[%emt
00:00:08]} 2. d4 {[%clk 01:26:59]} {[%emt 00:00:45]} d5 {[%clk 01:31:17]}
{[%emt 00:00:05]} 3. Nc3 {[%clk 01:26:47]} {[%emt 00:00:43]} Bb4 {[%clk
01:31:25]} {[%emt 00:00:21]} 4. e5 {[%clk 01:27:07]} {[%emt 00:00:11]} c5
{[%clk 01:28:51]} {[%emt 00:03:04]} 5. a3 {[%clk 01:27:14]} {[%emt 00:00:23]}
Ba5 {[%clk 01:29:16]} {[%emt 00:00:05]} 6. b4 {[%clk 01:13:25]} {[%emt
00:14:19]} cxd4 {[%clk 01:29:36]} {[%emt 00:00:10]} 7. Qg4 {[%clk 01:10:32]}
{[%emt 00:03:22]} Ne7 {[%clk 01:28:40]} {[%emt 00:01:25]} 8. bxa5 {[%clk
01:09:18]} {[%emt 00:01:46]} dxc3 {[%clk 01:29:02]} {[%emt 00:00:08]} 9. Qxg7
{[%clk 01:09:41]} {[%emt 00:00:08]} Rg8 {[%clk 01:29:20]} {[%emt 00:00:09]} 10.
Qxh7 {[%clk 01:10:02]} {[%emt 00:00:10]} Nbc6 {[%clk 01:28:12]} {[%emt
00:01:38]} 11. Nf3 {[%clk 01:07:01]} {[%emt 00:03:31]} Qc7 {[%clk 01:22:48]}
{[%emt 00:05:54]} 12. Bf4 {[%clk 01:04:21]} {[%emt 00:03:10]} Bd7 {[%clk
01:20:18]} {[%emt 00:03:01]} 13. Bg3 {[%clk 01:03:39]} {[%emt 00:01:11]} O-O-O
{[%clk 01:19:37]} {[%emt 00:01:11]} 14. Bd3 {[%clk 01:00:34]} {[%emt 00:03:35]}
Qxa5 {[%clk 01:08:18]} {[%emt 00:11:49]} 15. Qxf7 {[%clk 00:55:10]} {[%emt
00:05:54]} Rdf8 {[%clk 01:06:30]} {[%emt 00:02:18]} 16. Qh7 {[%clk 00:54:17]}
{[%emt 00:01:23]} Rh8 {[%clk 00:48:18]} {[%emt 00:18:42]} 17. Qg7 {[%clk
00:54:07]} {[%emt 00:00:39]} Rhg8 {[%clk 00:47:22]} {[%emt 00:01:27]} 18. Qh6
{[%clk 00:47:26]} {[%emt 00:07:12]} Nb4 {[%clk 00:47:39]} {[%emt 00:00:12]} 19.
Bh7 {[%clk 00:39:14]} {[%emt 00:08:43]} Nf5 {[%clk 00:39:56]} {[%emt 00:08:13]}
20. Qc1 {[%clk 00:37:07]} {[%emt 00:02:36]} Nc6 {[%clk 00:37:32]} {[%emt
00:02:54]} 21. Bxg8 {[%clk 00:36:05]} {[%emt 00:01:33]} Rxg8 {[%clk 00:37:55]}
{[%emt 00:00:05]} 22. O-O {[%clk 00:36:26]} {[%emt 00:00:10]} Be8 {[%clk
00:35:37]} {[%emt 00:02:48]} 23. Re1 {[%clk 00:33:43]} {[%emt 00:03:14]} Bh5
{[%clk 00:25:16]} {[%emt 00:10:51]} 24. Nh4 {[%clk 00:27:29]} {[%emt 00:06:43]}
Nxh4 {[%clk 00:24:09]} {[%emt 00:01:37]} 25. Bxh4 {[%clk 00:27:35]} {[%emt
00:00:24]} Nd4 {[%clk 00:24:24]} {[%emt 00:00:15]} 26. Qh6 {[%clk 00:26:05]}
{[%emt 00:02:00]} Bg6 {[%clk 00:24:09]} {[%emt 00:00:45]} 27. Rac1 {[%clk
00:25:38]} {[%emt 00:00:58]} Qxa3 {[%clk 00:22:14]} {[%emt 00:02:25]} 28. Bg5
{[%clk 00:24:32]} {[%emt 00:01:36]} Qa6 {[%clk 00:15:35]} {[%emt 00:07:07]} 29.
Ra1 {[%clk 00:21:00]} {[%emt 00:04:03]} Qb6 {[%clk 00:02:24]} {[%emt 00:13:42]}
30. Be3 {[%clk 00:19:06]} {[%emt 00:02:23]} Be4 {[%clk 00:02:24]} {[%emt
00:00:30]} 31. Bxd4 {[%clk 00:15:02]} {[%emt 00:04:34]} Rxg2+ {[%clk 00:01:49]}
{[%emt 00:01:05]} 32. Kh1 {[%clk 00:10:27]} {[%emt 00:05:04]} Qxd4 {[%clk
00:01:36]} {[%emt 00:00:44]} 33. f3 {[%clk 00:10:38]} {[%emt 00:00:19]} Rg1+
{[%clk 00:00:33]} {[%emt 00:01:33]} 34. Rxg1 {[%clk 00:10:50]} {[%emt
00:00:18]} Bxf3+ {[%clk 00:00:57]} {[%emt 00:00:07]} 35. Rg2 {[%clk 00:11:05]}
{[%emt 00:00:14]} Bxg2+ {[%clk 00:01:11]} {[%emt 00:00:16]} 36. Kxg2 {[%clk
00:11:29]} {[%emt 00:00:06]} 1-0

[Event "Schack-SM 2022: Mastarklassen-Elit"]
[Site "Fyrishov, Idrottsgatan 2, Uppsala, Sweden"]
[Date "2022.07.09"]
[Round "8.1"]
[White "Thorn, Eric"]
[Black "Von Bahr, Oskar"]
[Result "0-1"]
[TimeControl "90 minutes for 40 moves + 30 minutes for the rest of the game + 30 seconds per move from move one."]
[WhiteTitle "FM"]
[BlackTitle "IM"]
[WhiteFideId "1710729"]
[BlackFideId "1703250"]
[WhiteElo "2366"]
[BlackElo "2386"]

1. d4 {[%clk 01:30:56]} {[%emt 00:00:03]} Nf6 {[%clk 01:30:44]} {[%emt
00:00:16]} 2. c4 {[%clk 01:31:20]} {[%emt 00:00:06]} e6 {[%clk 01:30:53]}
{[%emt 00:00:21]} 3. Nf3 {[%clk 01:31:35]} {[%emt 00:00:15]} d5 {[%clk
01:31:07]} {[%emt 00:00:17]} 4. g3 {[%clk 01:31:47]} {[%emt 00:00:17]} Bb4+
{[%clk 01:31:04]} {[%emt 00:00:33]} 5. Bd2 {[%clk 01:32:10]} {[%emt 00:00:07]}
Be7 {[%clk 01:31:27]} {[%emt 00:00:08]} 6. Bg2 {[%clk 01:32:22]} {[%emt
00:00:18]} O-O {[%clk 01:31:47]} {[%emt 00:00:10]} 7. O-O {[%clk 01:32:18]}
{[%emt 00:00:34]} Nbd7 {[%clk 01:31:43]} {[%emt 00:00:34]} 8. Qc2 {[%clk
01:32:00]} {[%emt 00:00:48]} c6 {[%clk 01:31:24]} {[%emt 00:00:47]} 9. Rd1
{[%clk 01:30:19]} {[%emt 00:02:12]} b6 {[%clk 01:31:07]} {[%emt 00:00:47]} 10.
Bf4 {[%clk 01:29:53]} {[%emt 00:00:57]} Bb7 {[%clk 01:31:03]} {[%emt 00:00:33]}
11. Nc3 {[%clk 01:28:57]} {[%emt 00:01:27]} dxc4 {[%clk 01:30:09]} {[%emt
00:01:23]} 12. Nd2 {[%clk 01:27:54]} {[%emt 00:01:33]} Nd5 {[%clk 01:30:11]}
{[%emt 00:00:28]} 13. Nxc4 {[%clk 01:27:43]} {[%emt 00:00:41]} Nxf4 {[%clk
01:30:31]} {[%emt 00:00:11]} 14. gxf4 {[%clk 01:28:10]} {[%emt 00:00:03]} Qc7
{[%clk 01:30:23]} {[%emt 00:00:37]} 15. e3 {[%clk 01:25:34]} {[%emt 00:03:06]}
Rad8 {[%clk 01:29:43]} {[%emt 00:01:11]} 16. Rac1 {[%clk 01:24:02]} {[%emt
00:02:00]} c5 {[%clk 01:26:39]} {[%emt 00:03:35]} 17. d5 {[%clk 01:16:46]}
{[%emt 00:07:46]} exd5 {[%clk 01:25:38]} {[%emt 00:01:31]} 18. Nxd5 {[%clk
01:13:42]} {[%emt 00:03:35]} Bxd5 {[%clk 01:25:56]} {[%emt 00:00:12]} 19. Rxd5
{[%clk 01:08:57]} {[%emt 00:05:15]} b5 {[%clk 01:19:49]} {[%emt 00:06:35]} 20.
Ne5 {[%clk 01:06:41]} {[%emt 00:02:47]} Nxe5 {[%clk 01:19:27]} {[%emt
00:00:53]} 21. Rxe5 {[%clk 01:05:49]} {[%emt 00:01:22]} a6 {[%clk 01:15:44]}
{[%emt 00:04:13]} 22. a4 {[%clk 00:59:20]} {[%emt 00:06:59]} bxa4 {[%clk
01:04:42]} {[%emt 00:11:32]} 23. Qxa4 {[%clk 00:57:11]} {[%emt 00:02:38]} Rd2
{[%clk 00:48:23]} {[%emt 00:16:49]} 24. Rd5 {[%clk 00:52:50]} {[%emt 00:04:51]}
Rxd5 {[%clk 00:39:08]} {[%emt 00:09:45]} 25. Bxd5 {[%clk 00:52:59]} {[%emt
00:00:21]} Qd6 {[%clk 00:38:46]} {[%emt 00:00:53]} 26. Rd1 {[%clk 00:49:58]}
{[%emt 00:03:31]} Qg6+ {[%clk 00:38:30]} {[%emt 00:00:46]} 27. Bg2 {[%clk
00:46:42]} {[%emt 00:03:45]} Rb8 {[%clk 00:35:24]} {[%emt 00:03:36]} 28. h3
{[%clk 00:41:22]} {[%emt 00:05:51]} Bf8 {[%clk 00:34:27]} {[%emt 00:01:27]} 29.
b3 {[%clk 00:36:06]} {[%emt 00:05:45]} Qc2 {[%clk 00:32:03]} {[%emt 00:02:53]}
30. Qd7 {[%clk 00:19:26]} {[%emt 00:17:11]} Qxb3 {[%clk 00:27:07]} {[%emt
00:05:27]} 31. f5 {[%clk 00:11:13]} {[%emt 00:08:43]} Qb5 {[%clk 00:17:22]}
{[%emt 00:10:15]} 32. Qc7 {[%clk 00:07:56]} {[%emt 00:03:46]} Qb6 {[%clk
00:15:23]} {[%emt 00:02:30]} 33. Qe5 {[%clk 00:06:33]} {[%emt 00:01:52]} Rd8
{[%clk 00:13:26]} {[%emt 00:02:28]} 34. Bd5 {[%clk 00:06:06]} {[%emt 00:00:56]}
Bd6 {[%clk 00:11:22]} {[%emt 00:02:34]} 35. Qe4 {[%clk 00:05:51]} {[%emt
00:00:44]} Qc7 {[%clk 00:05:42]} {[%emt 00:06:11]} 36. f6 {[%clk 00:03:44]}
{[%emt 00:02:37]} gxf6 {[%clk 00:04:27]} {[%emt 00:01:45]} 37. Kh1 {[%clk
00:01:13]} {[%emt 00:03:01]} Kh8 {[%clk 00:02:44]} {[%emt 00:02:14]} 38. Qf5
{[%clk 00:00:44]} {[%emt 00:00:59]} Be5 {[%clk 00:01:34]} {[%emt 00:01:40]} 39.
f4 {[%clk 00:00:36]} {[%emt 00:00:37]} Bc3 {[%clk 00:01:12]} {[%emt 00:00:53]}
40. Rc1 {[%clk 00:00:53]} {[%emt 00:00:13]} Qd7 {[%clk 00:00:32]} {[%emt
00:01:09]} 41. Qxd7 {[%clk 00:20:32]} {[%emt 00:10:52]} Rxd7 {[%clk 00:30:57]}
{[%emt 00:00:04]} 42. Rxc3 {[%clk 00:15:50]} {[%emt 00:05:12]} Rxd5 {[%clk
00:31:23]} {[%emt 00:00:05]} 43. Kg2 {[%clk 00:16:09]} {[%emt 00:00:11]} f5
{[%clk 00:24:59]} {[%emt 00:06:53]} 44. Kf3 {[%clk 00:15:53]} {[%emt 00:00:47]}
a5 {[%clk 00:23:35]} {[%emt 00:01:53]} 45. Rc4 {[%clk 00:15:18]} {[%emt
00:01:05]} Kg7 {[%clk 00:16:14]} {[%emt 00:07:52]} 46. Ra4 {[%clk 00:15:31]}
{[%emt 00:00:17]} c4 {[%clk 00:16:03]} {[%emt 00:00:41]} 47. Rxc4 {[%clk
00:15:53]} {[%emt 00:00:08]} Rd6 {[%clk 00:16:19]} {[%emt 00:00:13]} 48. Rc5
{[%clk 00:15:36]} {[%emt 00:00:47]} Ra6 {[%clk 00:16:45]} {[%emt 00:00:05]} 49.
Rxf5 {[%clk 00:16:02]} {[%emt 00:00:04]} a4 {[%clk 00:13:36]} {[%emt 00:03:38]}
50. Rg5+ {[%clk 00:16:27]} {[%emt 00:00:06]} Kf6 {[%clk 00:13:46]} {[%emt
00:00:19]} 51. Rg2 {[%clk 00:16:51]} {[%emt 00:00:06]} a3 {[%clk 00:14:03]}
{[%emt 00:00:13]} 52. Ra2 {[%clk 00:17:17]} {[%emt 00:00:04]} Ke6 {[%clk
00:14:14]} {[%emt 00:00:19]} 53. Ke4 {[%clk 00:09:57]} {[%emt 00:07:50]} Ra4+
{[%clk 00:13:53]} {[%emt 00:00:51]} 54. Kd3 {[%clk 00:10:13]} {[%emt 00:00:14]}
f5 {[%clk 00:13:25]} {[%emt 00:00:58]} 55. Kc2 {[%clk 00:03:03]} {[%emt
00:07:40]} Kd5 {[%clk 00:12:12]} {[%emt 00:01:43]} 56. Kb1 {[%clk 00:01:46]}
{[%emt 00:01:48]} Ke4 {[%clk 00:11:35]} {[%emt 00:01:06]} 57. Rg2 {[%clk
00:00:55]} {[%emt 00:01:21]} Kxe3 {[%clk 00:11:20]} {[%emt 00:00:45]} 58. Rg7
{[%clk 00:01:22]} {[%emt 00:00:04]} Kxf4 {[%clk 00:09:51]} {[%emt 00:01:59]} 59.
Rxh7 {[%clk 00:01:47]} {[%emt 00:00:05]} Kg3 {[%clk 00:08:46]} {[%emt
00:01:34]} 60. Ka2 {[%clk 00:00:34]} {[%emt 00:01:44]} f4 {[%clk 00:08:41]}
{[%emt 00:00:34]} 61. h4 {[%clk 00:00:33]} {[%emt 00:00:32]} f3 {[%clk
00:08:55]} {[%emt 00:00:15]} 62. h5 {[%clk 00:00:33]} {[%emt 00:00:30]} f2
{[%clk 00:09:13]} {[%emt 00:00:13]} 63. Rg7+ {[%clk 00:00:33]} {[%emt
00:00:30]} Rg4 {[%clk 00:07:32]} {[%emt 00:02:10]} 64. Rf7 {[%clk 00:00:55]}
{[%emt 00:00:08]} Rf4 {[%clk 00:07:45]} {[%emt 00:00:18]} 0-1

[Event "Schack-SM 2022: Mastarklassen-Elit"]
[Site "Fyrishov, Idrottsgatan 2, Uppsala, Sweden"]
[Date "2022.07.09"]
[Round "8.2"]
[White "Trost, Edvin"]
[Black "Andersson, Tommy"]
[Result "1/2-1/2"]
[TimeControl "90 minutes for 40 moves + 30 minutes for the rest of the game + 30 seconds per move from move one."]
[WhiteTitle "FM"]
[BlackTitle "IM"]
[WhiteFideId "1729519"]
[BlackFideId "1703803"]
[WhiteElo "2345"]
[BlackElo "2384"]

1. e4 {[%clk 01:30:52]} {[%emt 00:00:07]} c5 {[%clk 01:30:54]} {[%emt
00:00:07]} 2. Nf3 {[%clk 01:31:11]} {[%emt 00:00:11]} d6 {[%clk 01:31:14]}
{[%emt 00:00:10]} 3. Nc3 {[%clk 01:30:47]} {[%emt 00:00:54]} e5 {[%clk
01:31:09]} {[%emt 00:00:34]} 4. Bc4 {[%clk 01:29:39]} {[%emt 00:01:38]} Nc6
{[%clk 01:28:00]} {[%emt 00:03:39]} 5. d3 {[%clk 01:27:20]} {[%emt 00:02:49]}
h6 {[%clk 01:28:23]} {[%emt 00:00:07]} 6. Nd2 {[%clk 01:24:09]} {[%emt
00:03:42]} Nf6 {[%clk 01:27:58]} {[%emt 00:00:54]} 7. Nf1 {[%clk 01:23:25]}
{[%emt 00:01:14]} a6 {[%clk 01:26:41]} {[%emt 00:01:48]} 8. a4 {[%clk
01:22:22]} {[%emt 00:01:32]} Be7 {[%clk 01:20:58]} {[%emt 00:06:13]} 9. Ne3
{[%clk 01:22:26]} {[%emt 00:00:27]} Nb4 {[%clk 01:15:58]} {[%emt 00:05:29]} 10.
Ncd5 {[%clk 01:04:00]} {[%emt 00:18:56]} Nbxd5 {[%clk 01:15:06]} {[%emt
00:01:23]} 11. Nxd5 {[%clk 01:03:47]} {[%emt 00:00:41]} Nxd5 {[%clk 01:08:37]}
{[%emt 00:06:59]} 12. Bxd5 {[%clk 01:03:58]} {[%emt 00:00:19]} Bf6 {[%clk
00:55:51]} {[%emt 00:13:18]} 13. c3 {[%clk 00:49:55]} {[%emt 00:14:32]} Qe7
{[%clk 00:55:05]} {[%emt 00:01:16]} 14. Qb3 {[%clk 00:46:53]} {[%emt 00:03:32]}
O-O {[%clk 00:52:41]} {[%emt 00:02:54]} 15. O-O {[%clk 00:45:43]} {[%emt
00:01:40]} Rb8 {[%clk 00:51:39]} {[%emt 00:01:32]} 16. f4 {[%clk 00:44:15]}
{[%emt 00:01:58]} Be6 {[%clk 00:45:44]} {[%emt 00:06:25]} 17. Be3 {[%clk
00:32:32]} {[%emt 00:12:13]} exf4 {[%clk 00:41:02]} {[%emt 00:05:12]} 18. Bxf4
{[%clk 00:31:56]} {[%emt 00:01:05]} b6 {[%clk 00:40:08]} {[%emt 00:01:25]} 19.
Rf2 {[%clk 00:24:12]} {[%emt 00:08:14]} b5 {[%clk 00:33:14]} {[%emt 00:07:24]}
20. axb5 {[%clk 00:20:50]} {[%emt 00:03:53]} axb5 {[%clk 00:24:30]} {[%emt
00:09:14]} 21. Ra6 {[%clk 00:18:44]} {[%emt 00:02:35]} Rfd8 {[%clk 00:19:00]}
{[%emt 00:06:01]} 22. Bxe6 {[%clk 00:15:43]} {[%emt 00:03:30]} fxe6 {[%clk
00:19:04]} {[%emt 00:00:26]} 23. Qd1 {[%clk 00:09:50]} {[%emt 00:06:22]} b4
{[%clk 00:17:38]} {[%emt 00:01:57]} 24. d4 {[%clk 00:09:47]} {[%emt 00:00:33]}
bxc3 {[%clk 00:15:18]} {[%emt 00:02:51]} 25. bxc3 {[%clk 00:10:16]} cxd4 {[%clk
00:14:30]} {[%emt 00:01:17]} 26. cxd4 {[%clk 00:10:09]} {[%emt 00:00:38]} Rb4
{[%clk 00:11:10]} {[%emt 00:03:49]} 27. Ra4 {[%clk 00:10:07]} {[%emt 00:00:32]}
Rdb8 {[%clk 00:11:09]} {[%emt 00:00:30]} 28. Rxb4 {[%clk 00:10:06]} {[%emt
00:00:32]} Rxb4 {[%clk 00:11:37]} {[%emt 00:00:02]} 29. e5 {[%clk 00:07:59]}
{[%emt 00:02:37]} dxe5 {[%clk 00:11:19]} {[%emt 00:00:47]} 30. Bxe5 {[%clk
00:06:24]} {[%emt 00:02:06]} Bxe5 {[%clk 00:08:50]} {[%emt 00:03:00]} 31. dxe5
{[%clk 00:06:53]} Re4 {[%clk 00:07:00]} {[%emt 00:02:19]} 32. Qb1 {[%clk
00:00:47]} {[%emt 00:06:37]} Rb4 {[%clk 00:04:10]} {[%emt 00:03:20]} 33. Qc2
{[%clk 00:00:45]} {[%emt 00:00:33]} Qb7 {[%clk 00:00:54]} {[%emt 00:03:46]} 34.
h3 {[%clk 00:01:06]} {[%emt 00:00:09]} Qd5 {[%clk 00:00:51]} {[%emt 00:00:33]}
35. Re2 {[%clk 00:01:05]} {[%emt 00:00:30]} Rc4 {[%clk 00:01:08]} {[%emt
00:00:14]} 36. Qb2 {[%clk 00:00:32]} {[%emt 00:01:02]} Qd1+ {[%clk 00:01:10]}
{[%emt 00:00:28]} 37. Kh2 {[%clk 00:00:57]} {[%emt 00:00:05]} Rc1 {[%clk
00:01:13]} {[%emt 00:00:27]} 38. Rf2 {[%clk 00:00:37]} {[%emt 00:00:50]} Rb1
{[%clk 00:01:18]} {[%emt 00:00:25]} 39. Qa2 {[%clk 00:00:43]} {[%emt 00:00:24]}
Qb3 {[%clk 00:00:40]} {[%emt 00:01:09]} 40. Qa8+ {[%clk 00:00:33]} {[%emt
00:00:40]} Qb8 {[%clk 00:00:57]} {[%emt 00:00:13]} 41. Qe4 {[%clk 00:29:12]}
{[%emt 00:01:47]} Rb4 {[%clk 00:30:19]} {[%emt 00:01:11]} 42. Qe3 {[%clk
00:28:48]} {[%emt 00:00:54]} Rb5 {[%clk 00:30:08]} {[%emt 00:00:41]} 43. Re2
{[%clk 00:28:57]} {[%emt 00:00:20]} Qc7 {[%clk 00:29:32]} {[%emt 00:01:07]} 44.
Qe4 {[%clk 00:28:35]} {[%emt 00:00:52]} Rd5 {[%clk 00:29:38]} {[%emt 00:00:24]}
45. Qg6 {[%clk 00:28:59]} {[%emt 00:00:06]} Rxe5 {[%clk 00:25:26]} {[%emt
00:04:42]} 46. Qg3 {[%clk 00:29:17]} {[%emt 00:00:12]} Rc5 {[%clk 00:25:50]}
{[%emt 00:00:06]} 1/2-1/2

[Event "Schack-SM 2022: Mastarklassen-Elit"]
[Site "Fyrishov, Idrottsgatan 2, Uppsala, Sweden"]
[Date "2022.07.09"]
[Round "8.3"]
[White "Johansson, Jan"]
[Black "Ernst, Thomas"]
[Result "0-1"]
[TimeControl "90 minutes for 40 moves + 30 minutes for the rest of the game + 30 seconds per move from move one."]
[WhiteTitle "IM"]
[BlackTitle "GM"]
[WhiteFideId "1700103"]
[BlackFideId "1700065"]
[WhiteElo "2306"]
[BlackElo "2289"]

1. d4 {[%clk 01:30:17]} {[%emt 00:00:43]} Nf6 {[%clk 01:30:50]} {[%emt
00:00:10]} 2. c4 {[%clk 01:29:45]} {[%emt 00:01:32]} g6 {[%clk 01:31:36]}
{[%emt 00:00:14]} 3. Nc3 {[%clk 01:30:07]} {[%emt 00:00:08]} d5 {[%clk
01:31:55]} {[%emt 00:00:10]} 4. Bg5 {[%clk 01:30:10]} {[%emt 00:00:28]} Ne4
{[%clk 01:31:42]} {[%emt 00:00:43]} 5. Bh4 {[%clk 01:30:36]} {[%emt 00:00:04]}
c5 {[%clk 01:31:52]} {[%emt 00:00:20]} 6. cxd5 {[%clk 01:27:25]} {[%emt
00:03:41]} Nxc3 {[%clk 01:31:07]} {[%emt 00:01:16]} 7. bxc3 {[%clk 01:27:50]}
{[%emt 00:00:04]} Qxd5 {[%clk 01:31:27]} {[%emt 00:00:09]} 8. e3 {[%clk
01:26:11]} {[%emt 00:02:10]} cxd4 {[%clk 01:22:18]} {[%emt 00:09:39]} 9. Qxd4
{[%clk 01:23:54]} {[%emt 00:02:47]} Qxd4 {[%clk 01:22:39]} {[%emt 00:00:09]} 10.
cxd4 {[%clk 01:24:19]} {[%emt 00:00:05]} e6 {[%clk 01:21:26]} {[%emt 00:01:42]}
11. Bb5+ {[%clk 01:18:15]} {[%emt 00:06:36]} Bd7 {[%clk 01:21:33]} {[%emt
00:00:21]} 12. Rb1 {[%clk 01:16:44]} {[%emt 00:02:02]} Bxb5 {[%clk 01:11:07]}
{[%emt 00:10:56]} 13. Rxb5 {[%clk 01:14:50]} {[%emt 00:02:24]} b6 {[%clk
01:11:30]} {[%emt 00:00:08]} 14. Nf3 {[%clk 01:09:42]} {[%emt 00:05:36]} Be7
{[%clk 01:11:04]} {[%emt 00:00:56]} 15. Kd2 {[%clk 00:54:38]} {[%emt 00:15:35]}
Bxh4 {[%clk 01:10:02]} {[%emt 00:01:33]} 16. Nxh4 {[%clk 00:51:13]} {[%emt
00:03:54]} Nc6 {[%clk 01:09:58]} {[%emt 00:00:33]} 17. Rc1 {[%clk 00:49:44]}
{[%emt 00:01:59]} Rc8 {[%clk 01:09:57]} {[%emt 00:00:30]} 18. Nf3 {[%clk
00:44:25]} {[%emt 00:05:50]} f6 {[%clk 01:08:52]} {[%emt 00:01:35]} 19. Rb3
{[%clk 00:34:41]} {[%emt 00:10:14]} Kd7 {[%clk 01:07:45]} {[%emt 00:01:36]} 20.
g4 {[%clk 00:22:23]} {[%emt 00:12:50]} e5 {[%clk 00:53:52]} {[%emt 00:14:22]}
21. g5 {[%clk 00:09:01]} {[%emt 00:13:53]} e4 {[%clk 00:43:26]} {[%emt
00:10:55]} 22. Ng1 {[%clk 00:08:48]} {[%emt 00:00:44]} fxg5 {[%clk 00:43:34]}
{[%emt 00:00:22]} 23. Rbc3 {[%clk 00:07:50]} {[%emt 00:01:28]} Rhf8 {[%clk
00:40:22]} {[%emt 00:03:42]} 24. Ke2 {[%clk 00:05:45]} {[%emt 00:02:35]} Nb4
{[%clk 00:38:46]} {[%emt 00:02:05]} 25. Rxc8 {[%clk 00:04:45]} {[%emt
00:01:31]} Rxc8 {[%clk 00:39:04]} {[%emt 00:00:12]} 26. Rxc8 {[%clk 00:05:11]}
{[%emt 00:00:05]} Kxc8 {[%clk 00:39:15]} {[%emt 00:00:19]} 27. f3 {[%clk
00:04:48]} {[%emt 00:00:52]} Nxa2 {[%clk 00:37:19]} {[%emt 00:02:26]} 28. fxe4
{[%clk 00:05:14]} {[%emt 00:00:04]} b5 {[%clk 00:37:28]} {[%emt 00:00:22]} 29.
Kd3 {[%clk 00:05:27]} {[%emt 00:00:16]} b4 {[%clk 00:37:48]} {[%emt 00:00:10]}
30. Nf3 {[%clk 00:04:35]} {[%emt 00:01:22]} a5 {[%clk 00:35:57]} {[%emt
00:02:21]} 31. Nd2 {[%clk 00:03:16]} {[%emt 00:01:49]} h5 {[%clk 00:35:37]}
{[%emt 00:00:50]} 32. Nc4 {[%clk 00:03:26]} {[%emt 00:00:20]} g4 {[%clk
00:34:35]} {[%emt 00:01:32]} 33. Nxa5 {[%clk 00:01:57]} {[%emt 00:02:00]} h4
{[%clk 00:34:54]} {[%emt 00:00:10]} 34. Ke2 {[%clk 00:01:48]} {[%emt 00:00:39]}
Nc3+ {[%clk 00:35:08]} {[%emt 00:00:16]} 0-1